fUST/lending_fUST_20241004
["ID","MTS","AMOUNT","RATE_DAILY","PERIOD"]
[339806347,1727992236632,-500.0,0.00013698,2]
[339806348,1727992236642,-500.0,0.00013698,2]
[339806349,1727992236652,-500.0,0.00013698,2]
[339806350,1727992236661,-500.0,0.00013698,2]
[339806351,1727992236671,-500.0,0.00013698,2]
[339806352,1727992236680,-819.46,0.00013698,2]
[339806353,1727992236689,-643.18,0.00013698,2]
[339806354,1727992236698,-19130.12644012,0.00013698,2]
[339806355,1727992236719,-183.83355988,0.00013698,2]
[339806356,1727992236728,-500.0,0.00013698,2]
[339806357,1727992236737,-491.75603374,0.00013698,2]
[339806359,1727992238272,-8.24396626,0.00013698,2]
[339806360,1727992238282,-629.21,0.00013698,2]
[339806361,1727992238292,-500.0,0.00013698,2]
[339806362,1727992238301,-500.0,0.00013698,2]
[339806363,1727992238310,-500.0,0.00013698,2]
[339806364,1727992238319,-500.0,0.00013698,2]
[339806365,1727992238328,-500.0,0.00013698,2]
[339806367,1727992238337,-1233.09388794,0.00013698,2]
[339806369,1727992238349,-670.24779425,0.00013698,2]
[339806372,1727992238361,-743.48831781,0.00013698,2]
[339806380,1727992238524,-500.0,0.00013698,2]
[339806381,1727992238534,-500.0,0.00013698,2]
[339806382,1727992238544,-500.0,0.00013698,2]
[339806383,1727992238554,-500.0,0.00013698,2]
[339806384,1727992238564,-500.0,0.00013698,2]
[339806385,1727992238573,-837.64,0.00013698,2]
[339806386,1727992238583,-500.0,0.00013698,2]
[339806387,1727992238592,-697.74,0.00013698,2]
[339806388,1727992238601,-500.0,0.00013698,2]
[339806389,1727992238610,-500.0,0.00013698,2]
[339806390,1727992238620,-793.31,0.00013698,2]
[339806391,1727992238629,-500.0,0.00013698,2]
[339806392,1727992238638,-500.0,0.00013698,2]
[339806393,1727992238647,-500.0,0.00013698,2]
[339806394,1727992238656,-500.0,0.00013698,2]
[339806395,1727992238666,-500.0,0.00013698,2]
[339806396,1727992238675,-500.0,0.00013698,2]
[339806397,1727992238684,-500.0,0.00013698,2]
[339806398,1727992238693,-500.0,0.00013698,2]
[339806399,1727992238702,-500.0,0.00013698,2]
[339806400,1727992238711,-500.0,0.00013698,2]
[339806401,1727992238720,-513.53425258,0.00013698,2]
[339806402,1727992238729,-364.72337374,0.00013698,2]
[339806403,1727992238741,-135.27662626,0.00013698,2]
[339806404,1727992238750,-520.61,0.00013698,2]
[339806405,1727992238759,-78.58295756,0.00013698,2]
[339806406,1727992238861,-380.38704244,0.00013698,2]
[339806407,1727992238871,-1562.67,0.00013698,2]
[339806408,1727992238880,-500.65490051,0.00013698,2]
[339806409,1727992238889,-627.5,0.00013698,2]
[339806410,1727992238898,-500.0,0.00013698,2]
[339806411,1727992238908,-500.0,0.00013698,2]
[339806412,1727992238917,-500.0,0.00013698,2]
[339806413,1727992238926,-500.0,0.00013698,2]
[339806414,1727992238935,-500.0,0.00013698,2]
[339806415,1727992238945,-500.0,0.00013698,2]
[339806416,1727992238955,-500.0,0.00013698,2]
[339806417,1727992238964,-558.27,0.00013698,2]
[339806418,1727992238974,-500.0,0.00013698,2]
[339806419,1727992238983,-500.0,0.00013698,2]
[339806420,1727992238993,-500.0,0.00013698,2]
[339806421,1727992239003,-500.0,0.00013698,2]
[339806422,1727992239016,-637.19,0.00013698,2]
[339806423,1727992239027,-500.0,0.00013698,2]
[339806424,1727992239041,-500.0,0.00013698,2]
[339806425,1727992239051,-500.0,0.00013698,2]
[339806426,1727992239061,-500.0,0.00013698,2]
[339806427,1727992239071,-500.0,0.00013698,2]
[339806428,1727992239081,-500.0,0.00013698,2]
[339806429,1727992239091,-738.34,0.00013698,2]
[339806430,1727992239103,-584.56589757,0.00013698,2]
[339806431,1727992239115,-700.45,0.00013698,2]
[339806432,1727992239125,-500.0,0.00013698,2]
[339806433,1727992239135,-500.0,0.00013698,2]
[339806434,1727992239146,-500.0,0.00013698,2]
[339806435,1727992239157,-500.0,0.00013698,2]
[339806436,1727992239167,-870.29,0.00013698,2]
[339806437,1727992239176,-500.0,0.00013698,2]
[339806438,1727992239186,-500.0,0.00013698,2]
[339806439,1727992239196,-512.76500707,0.00013698,2]
[339806440,1727992239206,-500.0,0.00013698,2]
[339806441,1727992239215,-500.0,0.00013698,2]
[339806442,1727992239224,-500.0,0.00013698,2]
[339806443,1727992239235,-500.0,0.00013698,2]
[339806444,1727992239245,-500.0,0.00013698,2]
[339806445,1727992239255,-500.0,0.00013698,2]
[339806446,1727992239266,-500.0,0.00013698,2]
[339806447,1727992239275,-500.0,0.00013698,2]
[339806448,1727992239285,-500.0,0.00013698,2]
[339806449,1727992239294,-500.0,0.00013698,2]
[339806450,1727992239304,-500.0,0.00013698,2]
[339806451,1727992239313,-1189.3,0.00013698,2]
[339806452,1727992239322,-500.0,0.00013698,2]
[339806453,1727992239331,-607.25,0.00013698,2]
[339806454,1727992239341,-500.0,0.00013698,2]
[339806455,1727992239354,-500.0,0.00013698,2]
[339806456,1727992239364,-581.59139014,0.00013698,2]
[339806457,1727992239375,-500.0,0.00013698,2]
[339806458,1727992239384,-1018.44,0.00013698,2]
[339806459,1727992239396,-500.0,0.00013698,2]
[339806460,1727992239407,-500.0,0.00013698,2]
[339806461,1727992239417,-500.0,0.00013698,2]
[339806462,1727992239429,-500.0,0.00013698,2]
[339806463,1727992239439,-1010.79,0.00013698,2]
[339806464,1727992239450,-672.0,0.00013698,2]
[339806465,1727992239461,-500.0,0.00013698,2]
[339806466,1727992239471,-500.0,0.00013698,2]
[339806467,1727992239480,-500.0,0.00013698,2]
[339806468,1727992239489,-500.0,0.00013698,2]
[339806469,1727992239498,-500.0,0.00013698,2]
[339806470,1727992239507,-530.21,0.00013698,2]
[339806471,1727992239517,-500.0,0.00013698,2]
[339806472,1727992239526,-500.0,0.00013698,2]
[339806473,1727992239535,-500.0,0.00013698,2]
[339806474,1727992239545,-500.0,0.00013698,2]
[339806475,1727992239554,-419.04867963,0.00013698,2]
[339806480,1727992240262,-764.26132037,0.00013698,2]
[339806481,1727992240272,-500.0,0.00013698,2]
[339806482,1727992240282,-547.02,0.00013698,2]
[339806483,1727992240292,-500.0,0.00013698,2]
[339806484,1727992240301,-500.0,0.00013698,2]
[339806485,1727992240311,-500.0,0.00013698,2]
[339806486,1727992240322,-516.61,0.00013698,2]
[339806487,1727992240332,-575.53,0.00013698,2]
[339806488,1727992240342,-500.0,0.00013698,2]
[339806489,1727992240353,-500.0,0.00013698,2]
[339806490,1727992240362,-500.0,0.00013698,2]
[339806491,1727992240372,-387.840315,0.00013698,2]
[339806493,1727992240382,-500.0,0.00013698,2]
[339806495,1727992240392,-501.00887923,0.00013698,2]
[339806496,1727992240402,-500.0,0.00013698,2]
[339806497,1727992240412,-988.26,0.00013698,2]
[339806498,1727992240423,-634.91,0.00013698,2]
[339806500,1727992240433,-647.91,0.00013698,2]
[339806501,1727992240443,-500.0,0.00013698,2]
[339806502,1727992240453,-500.0,0.00013698,2]
[339806503,1727992240463,-542.94,0.00013698,2]
[339806504,1727992240473,-500.0,0.00013698,2]
[339806505,1727992240483,-500.0,0.00013698,2]
[339806506,1727992240493,-500.0,0.00013698,2]
[339806507,1727992240503,-500.0,0.00013698,2]
[339806508,1727992240515,-500.0,0.00013698,2]
[339806509,1727992240534,-500.0,0.00013698,2]
[339806510,1727992240547,-606.41,0.00013698,2]
[339806511,1727992240557,-1799.61,0.00013698,2]
[339806512,1727992240568,-500.0,0.00013698,2]
[339806513,1727992240577,-500.0,0.00013698,2]
[339806514,1727992240586,-500.0,0.00013698,2]
[339806515,1727992240595,-500.0,0.00013698,2]
[339806516,1727992240604,-500.0,0.00013698,2]
[339806517,1727992240614,-569.94,0.00013698,2]
[339806518,1727992240624,-500.0,0.00013698,2]
[339806519,1727992240634,-500.0,0.00013698,2]
[339806520,1727992240643,-629.42,0.00013698,2]
[339806521,1727992240652,-500.0,0.00013698,2]
[339806522,1727992240663,-500.0,0.00013698,2]
[339806523,1727992240672,-570.01,0.00013698,2]
[339806524,1727992240682,-500.0,0.00013698,2]
[339806525,1727992240692,-500.0,0.00013698,2]
[339806526,1727992240703,-500.0,0.00013698,2]
[339806527,1727992240715,-500.0,0.00013698,2]
[339806528,1727992240725,-500.0,0.00013698,2]
[339806529,1727992240736,-500.0,0.00013698,2]
[339806530,1727992240747,-500.0,0.00013698,2]
[339806531,1727992240758,-500.45372874,0.00013698,2]
[339806532,1727992240772,-500.0,0.00013698,2]
[339806533,1727992240782,-1037.24,0.00013698,2]
[339806534,1727992240792,-500.0,0.00013698,2]
[339806535,1727992240801,-473.41095922,0.00013698,2]
[339806536,1727992240810,-500.0,0.00013698,2]
[339806537,1727992240820,-623.23,0.00013698,2]
[339806538,1727992240829,-500.0,0.00013698,2]
[339806539,1727992240839,-500.0,0.00013698,2]
[339806540,1727992240848,-561.01,0.00013698,2]
[339806541,1727992240857,-577.93008809,0.00013698,2]
[339806542,1727992240868,-154.46395219,0.00013698,2]
[339806543,1727992240878,-500.0,0.00013698,2]
[339806544,1727992240887,-500.0,0.00013698,2]
[339806545,1727992240898,-588.49,0.00013698,2]
[339806546,1727992240908,-485.0,0.00013698,2]
[339806547,1727992240918,-1008.24,0.00013698,2]
[339806548,1727992240927,-566.03,0.00013698,2]
[339806549,1727992240937,-500.0,0.00013698,2]
[339806550,1727992240947,-500.0,0.00013698,2]
[339806551,1727992240956,-508.59,0.00013698,2]
[339806552,1727992240965,-627.12,0.00013698,2]
[339806553,1727992240975,-500.0,0.00013698,2]
[339806554,1727992240984,-289.11976863,0.00013698,2]
[339806555,1727992240994,-500.0,0.00013698,2]
[339806556,1727992241003,-500.0,0.00013698,2]
[339806557,1727992241013,-500.0,0.00013698,2]
[339806558,1727992241023,-767.89,0.00013698,2]
[339806559,1727992241033,-373.98779234,0.00013698,2]
[339806560,1727992241047,-500.0,0.00013698,2]
[339806561,1727992241059,-500.0,0.00013698,2]
[339806562,1727992241068,-524.20681837,0.00013698,2]
[339806563,1727992241079,-500.0,0.00013698,2]
[339806564,1727992241088,-500.0,0.00013698,2]
[339806565,1727992241098,-500.0,0.00013698,2]
[339806566,1727992241107,-500.0,0.00013698,2]
[339806567,1727992241116,-619.26,0.00013698,2]
[339806568,1727992241128,-500.44387226,0.00013698,2]
[339806569,1727992241139,-500.0,0.00013698,2]
[339806570,1727992241149,-500.0,0.00013698,2]
[339806571,1727992241159,-500.0,0.00013698,2]
[339806572,1727992241169,-3668.255928,0.00013699,2]
[339806573,1727992241178,-389.24509,0.00013699,2]
[339806574,1727992241187,-166.666666,0.00013699,2]
[339806575,1727992241196,-1121.21,0.000137,2]
[339806576,1727992241206,-168.549575,0.00013764,2]
[339806577,1727992241216,-7195.04478571,0.00013767,2]
[339806578,1727992241226,-150.112233,0.000138,2]
[339806579,1727992241235,-160.133,0.00013811,2]
[339806580,1727992241245,-560.236,0.00013811,2]
[339806581,1727992241255,-1236.519,0.00013811,2]
[339806582,1727992241265,-170.517,0.00013811,2]
[339806583,1727992241275,-5400.412,0.00013811,2]
[339806584,1727992241284,-150.164,0.00013811,2]
[339806585,1727992241294,-150.0,0.00013811,2]
[339806586,1727992241305,-150.0,0.00013811,2]
[339806587,1727992241314,-298.91452816,0.00013822,2]
[339806588,1727992241323,-42476.58352147,0.00013832,2]
[339806589,1727992241333,-5651.01067172,0.00013832,2]
[339806599,1727992265472,150.0,0.000209,120]
[339806602,1727993255081,2152.67271631,0.0001,2]
[339806603,1727993317326,150.0,0.000209,120]
[339806617,1727993432518,-235.67178,0.00012603,2]
[339806620,1727993432528,-159.32854,0.00012628,2]
[339806621,1727993432537,-191.56250377,0.00013277,2]
[339806622,1727993432547,-183.148362,0.00013428,2]
[339806623,1727993432557,-589.956573,0.00013428,2]
[339806624,1727993432566,-681.968491,0.00013428,2]
[339806625,1727993432576,-173.886322,0.00013428,2]
[339806626,1727993432586,-412.2327637,0.00013431,2]
[339806627,1727993432619,-427.90126512,0.00013431,2]
[339806644,1727993438564,-2827.294796,0.00013431,2]
[339806654,1727993440561,-3527.61596089,0.00013431,2]
[339806655,1727993440572,-600.0,0.0001344,2]
[339806656,1727993440583,-300.0,0.00013561,2]
[339806657,1727993440592,-300.0,0.00013561,2]
[339806658,1727993440602,-208.21312646,0.00013578,2]
[339806659,1727993440612,-308.43749623,0.0001358,2]
[339806660,1727993440623,-600.0,0.0001358,2]
[339806661,1727993440634,-490.55212092,0.00013593,2]
[339806662,1727993440644,-589.956573,0.00013596,2]
[339806663,1727993440655,-681.968491,0.00013596,2]
[339806664,1727993440666,-906.78636937,0.00013598,2]
[339806665,1727993440676,-3781.15927499,0.00013598,2]
[339806666,1727993440686,-12679.63458764,0.00013598,2]
[339806673,1727993443844,-17100.47600646,0.00013598,2]
[339806674,1727993443853,-1000.0,0.00013598,2]
[339806675,1727993443864,-30101.15472642,0.00013651,2]
[339806676,1727993443873,-64313.0058115,0.00013678,2]
[339806677,1727993443883,-155.5973704,0.00013682,2]
[339806678,1727993443893,-25444.23312909,0.00013688,2]
[339806695,1727994368926,150.0,0.000209,120]
[339806696,1727994427150,-177.16,0.00010959,2]
[339806697,1727994427174,-885.85,0.00010959,2]
[339806698,1727994427196,-223.888191,0.00012603,2]
[339806699,1727994427218,-300.0,0.00013291,2]
[339806700,1727994427240,-300.0,0.00013291,2]
[339806701,1727994427262,-3886.35474281,0.00013292,2]
[339806702,1727994430378,-577.32529338,0.00013292,2]
[339806708,1727994554197,-541.0,0.00010959,2]
[339806730,1727994631687,-160.508506,0.00012632,2]
[339806732,1727994631698,-160.508506,0.00012851,2]
[339806734,1727994631707,-160.508506,0.00013071,2]
[339806736,1727994631720,-160.508506,0.0001329,2]
[339806738,1727994631736,-1894.70680298,0.000133,3]
[339806741,1727994631746,-187.308323,0.00013428,2]
[339806745,1727994631756,-183.148359,0.00013428,2]
[339806748,1727994631766,-28.86851471,0.00013567,2]
[339806751,1727994631777,-1882.44652883,0.00013567,2]
[339806753,1727994631787,-1000.0,0.00013578,2]
[339806755,1727994631796,-300.0,0.00013666,2]
[339806757,1727994631806,-300.0,0.00013666,2]
[339806760,1727994631815,-604.52424625,0.00013667,2]
[339806762,1727994631825,-22823.77703293,0.00013667,2]
[339806771,1727994631877,-912.08577584,0.00013667,2]
[339806773,1727994631890,-486.54876236,0.00013667,2]
[339806846,1727994638006,-914.55,0.00013667,2]
[339806847,1727994638024,-739.258,0.00013667,2]
[339806865,1727994639781,-8023.39374247,0.00013667,2]
[339806866,1727994639791,-33899.6133136,0.00013668,2]
[339806867,1727994639801,-16949.8066568,0.00013668,2]
[339806868,1727994639811,-16949.8066568,0.00013668,2]
[339806869,1727994639820,-34485.06477728,0.00013678,2]
[339806870,1727994639830,-14067.51844484,0.00013678,2]
[339806893,1727995639138,-1434.4786627,0.00012266,2]
[339806894,1727995639160,-228.9186452,0.00012269,2]
[339806895,1727995639183,-159.115997,0.00012406,2]
[339806896,1727995639206,-225.750391,0.00012603,2]
[339806897,1727995639228,-2930.27304493,0.00013267,2]
[339806914,1727995831828,-151.014,0.00012,2]
[339806916,1727995831841,-151.074,0.000126,2]
[339806917,1727995831851,-171.74615027,0.00013428,2]
[339806926,1727995832098,-35.62291473,0.00013428,2]
[339806927,1727995832109,-168.549575,0.00013428,2]
[339806928,1727995832120,-677.29364923,0.00013473,2]
[339806963,1727995839923,-1240.52634017,0.00013473,2]
[339806964,1727995839934,-466.31557633,0.00013558,2]
[339806965,1727995839944,-300.0,0.0001356,2]
[339806966,1727995839954,-300.0,0.0001356,2]
[339806967,1727995839963,-2618.45808272,0.00013561,2]
[339806968,1727995839975,-3747.91847216,0.00013561,2]
[339806976,1727995843161,-615.0,0.00013561,2]
[339806982,1727995845950,-308.04472625,0.00013561,2]
[339806985,1727995846059,-711.21448362,0.00013561,2]
[339807003,1727997032067,-701.3881279,0.00012199,2]
[339807005,1727997032077,-185.766363,0.0001229,2]
[339807007,1727997032088,-226.866649,0.00012603,2]
[339807009,1727997032097,-185.766363,0.00012611,2]
[339807011,1727997032108,-185.766363,0.00012931,2]
[339807012,1727997032117,-153.0,0.000131,2]
[339807014,1727997032126,-3407.71159792,0.00013213,2]
[339807032,1727997037992,-1774.93,0.00013213,2]
[339807033,1727997038525,-1524.5350968,0.00013213,2]
[339807034,1727997038535,-287.67795531,0.00013372,2]
[339807035,1727997038544,-287.6779553,0.00013377,2]
[339807036,1727997038554,-287.6779553,0.00013381,2]
[339807037,1727997038564,-287.6779553,0.00013386,2]
[339807038,1727997038573,-300.0,0.00013387,2]
[339807039,1727997038584,-739.68335316,0.00013388,2]
[339807040,1727997038596,-1678.09249076,0.00013389,2]
[339807041,1727997038607,-287.6779553,0.0001339,2]
[339807042,1727997038618,-49563.04962705,0.00013398,2]
[339807043,1727997038628,-15114.33274271,0.00013398,2]
[339807060,1727997040099,-70914.87746625,0.00013398,2]
[339807061,1727997040111,-13000.2700885,0.00013398,2]
[339807066,1727997043179,-854.41412227,0.00013398,2]
[339807071,1727997046122,-4430.47378529,0.00013398,2]
[339807072,1727997046172,-54985.76426451,0.00013398,2]
[339807073,1727997046187,-30502.85306986,0.00013398,2]
[339807074,1727997046200,-166.599938,0.00013428,2]
[339807075,1727997046210,-195.112837,0.00013428,2]
[339807076,1727997046219,-1000.0,0.00013461,2]
[339807077,1727997046230,-64006.3434748,0.00013462,2]
[339807078,1727997046240,-13296.87360849,0.00013472,2]
[339807079,1727997046249,-500.0,0.00013473,2]
[339807080,1727997046259,-500.0,0.00013473,2]
[339807081,1727997046270,-500.0,0.00013473,2]
[339807082,1727997046282,-151.0,0.00013479,2]
[339807083,1727997046294,-48004.7576061,0.0001348,2]
[339807084,1727997046304,-1284.619417,0.0001349,2]
[339807085,1727997046314,-1284.619417,0.0001349,2]
[339807086,1727997046324,-151.0,0.0001349,2]
[339807087,1727997046334,-332.909155,0.0001349,2]
[339807088,1727997046345,-332.909155,0.0001349,2]
[339807089,1727997046356,-151.0,0.0001349,2]
[339807090,1727997046366,-159.507751,0.0001349,2]
[339807091,1727997046375,-151.0,0.0001349,2]
[339807092,1727997046385,-207.417891,0.0001349,2]
[339807093,1727997046395,-151.0,0.0001349,2]
[339807094,1727997046405,-207.417891,0.0001349,2]
[339807095,1727997046414,-151.0,0.0001349,2]
[339807096,1727997046423,-151.0,0.0001349,2]
[339807097,1727997046433,-151.0,0.0001349,2]
[339807098,1727997046442,-1056.475687,0.0001349,2]
[339807099,1727997046451,-1056.475687,0.0001349,2]
[339807100,1727997046462,-1275.988963,0.0001349,2]
[339807101,1727997046471,-1275.988963,0.0001349,2]
[339807102,1727997046481,-6169.5,0.000135,2]
[339807103,1727997046491,-548.27859261,0.00013529,2]
[339807105,1727997656371,152.0,0.000209,120]
[339807109,1727998026705,-150.0,0.0001082,2]
[339807110,1727998026728,-177.16,0.00010959,2]
[339807111,1727998026752,-150.0,0.0001176,2]
[339807112,1727998026774,-1000.0,0.00012602,2]
[339807113,1727998026797,-215.523316,0.00012603,2]
[339807114,1727998026821,-152.03907526,0.00013199,2]
[339807115,1727998026843,-1000.0,0.00013272,2]
[339807116,1727998026867,-482.38780283,0.00013272,2]
[339807117,1727998026890,-1898.17076703,0.00013296,2]
[339807118,1727998026915,-1000.0,0.0001337,2]
[339807119,1727998026939,-169.26314822,0.00013371,2]
[339807120,1727998149717,-164.03824962,0.00010959,2]
[339807171,1727998238306,-210.46,0.00010959,2]
[339807172,1727998238316,-175.39,0.00010959,2]
[339807173,1727998238326,-876.96,0.00010959,2]
[339807175,1727998238336,-5585.42836546,0.00013284,2]
[339807176,1727998238345,-1660.89942116,0.000133,2]
[339807177,1727998238354,-217.0,0.00013371,2]
[339807178,1727998238363,-300.0,0.00013371,2]
[339807179,1727998238373,-9707.66661307,0.00013372,2]
[339807180,1727998238384,-5993.52451064,0.00013372,2]
[339807181,1727998238394,-15859.23387037,0.00013384,2]
[339807182,1727998238403,-772.61154455,0.00013384,2]
[339807183,1727998238413,-1000.0,0.000134,2]
[339807184,1727998238422,-2307.47072421,0.000134,2]
[339807185,1727998238431,-1439.76839448,0.00013402,2]
[339807186,1727998238441,-1715.46778048,0.00013412,2]
[339807187,1727998238450,-1000.0,0.00013412,2]
[339807188,1727998238460,-12691.49857882,0.00013418,2]
[339807189,1727998238470,-1000.0,0.0001342,2]
[339807190,1727998238479,-241.085852,0.00013428,2]
[339807191,1727998238489,-184.063601,0.00013428,2]
[339807192,1727998238499,-202.392207,0.00013428,2]
[339807193,1727998238509,-220.0,0.0001343,2]
[339807194,1727998238518,-165.92349749,0.00013473,2]
[339807195,1727998238528,-500.0,0.00013473,2]
[339807196,1727998238538,-151.0,0.00013479,2]
[339807197,1727998238549,-1805.894111,0.00013479,2]
[339807198,1727998238558,-1805.894111,0.00013479,2]
[339807199,1727998238569,-44941.51297072,0.00013492,2]
[339807200,1727998238585,-32685.18064227,0.00013492,2]
[339807215,1727998240281,-36506.18140701,0.00013492,2]
[339807216,1727998240292,-7429.0957308,0.00013492,2]
[339807217,1727998240301,-152177.166693,0.00013492,2]
[339807218,1727998240311,-14858.1914616,0.00013492,2]
[339807219,1727998240323,-4952.7304872,0.00013497,2]
[339807220,1727998240333,-400.267469,0.000135,2]
[339807221,1727998240343,-1000.0,0.000135,2]
[339807222,1727998240352,-150.112233,0.000135,2]
[339807223,1727998240363,-150.112233,0.000135,2]
[339807224,1727998240373,-150.112233,0.000135,2]
[339807225,1727998240383,-150.112233,0.000135,2]
[339807226,1727998240392,-150.112233,0.000135,2]
[339807227,1727998240403,-150.112233,0.000135,2]
[339807228,1727998240414,-150.112235,0.000135,2]
[339807229,1727998240425,-5423.71537,0.000135,2]
[339807230,1727998240436,-43325.50912713,0.00013501,2]
[339807231,1727998240446,-104087.40303704,0.00013501,2]
[339807232,1727998240456,-151.0,0.00013502,2]
[339807233,1727998240465,-151.0,0.00013502,2]
[339807234,1727998240475,-151.0,0.00013502,2]
[339807235,1727998240485,-151.0,0.00013502,2]
[339807236,1727998240496,-151.0,0.00013502,2]
[339807237,1727998240506,-1476.099036,0.00013502,2]
[339807238,1727998240516,-1476.099036,0.00013502,2]
[339807239,1727998240527,-212.824329,0.00013502,2]
[339807240,1727998240537,-212.824329,0.00013502,2]
[339807241,1727998240547,-151.0,0.00013502,2]
[339807242,1727998240557,-151.0,0.00013502,2]
[339807243,1727998240567,-151.0,0.00013502,2]
[339807244,1727998240577,-151.0,0.00013502,2]
[339807245,1727998240586,-151.0,0.00013502,2]
[339807246,1727998240596,-264.266205,0.00013502,2]
[339807247,1727998240606,-264.266205,0.00013502,2]
[339807248,1727998240617,-151.0,0.00013502,2]
[339807249,1727998240627,-151.0,0.00013502,2]
[339807250,1727998240645,-151.0,0.00013502,2]
[339807251,1727998240663,-564.32057,0.00013502,2]
[339807252,1727998240674,-564.32057,0.00013502,2]
[339807253,1727998240684,-564.32057,0.00013502,2]
[339807254,1727998240693,-564.32057,0.00013502,2]
[339807255,1727998240704,-564.32057,0.00013502,2]
[339807256,1727998240716,-564.32057,0.00013502,2]
[339807257,1727998240727,-151.0,0.00013502,2]
[339807258,1727998240739,-151.0,0.00013502,2]
[339807259,1727998240750,-151.0,0.00013502,2]
[339807260,1727998240760,-151.0,0.00013502,2]
[339807261,1727998240769,-151.0,0.00013502,2]
[339807262,1727998240779,-151.0,0.00013502,2]
[339807263,1727998240789,-151.0,0.00013502,2]
[339807264,1727998240800,-151.0,0.00013502,2]
[339807265,1727998240811,-151.0,0.00013502,2]
[339807266,1727998240823,-151.0,0.00013502,2]
[339807267,1727998240833,-151.0,0.00013502,2]
[339807268,1727998240845,-151.0,0.00013502,2]
[339807269,1727998240857,-196.084553,0.00013502,2]
[339807270,1727998240867,-196.084553,0.00013502,2]
[339807271,1727998240877,-196.084553,0.00013502,2]
[339807272,1727998240886,-196.084553,0.00013502,2]
[339807273,1727998240896,-196.084553,0.00013502,2]
[339807274,1727998240906,-196.084553,0.00013502,2]
[339807275,1727998240920,-12381.826218,0.00013502,2]
[339807276,1727998240930,-151.0,0.00013507,2]
[339807277,1727998240940,-151.0,0.00013507,2]
[339807278,1727998240952,-151.0,0.00013507,2]
[339807279,1727998240961,-151.0,0.00013507,2]
[339807280,1727998240971,-151.0,0.00013507,2]
[339807281,1727998240981,-151.0,0.00013507,2]
[339807282,1727998240992,-151.0,0.00013507,2]
[339807283,1727998241002,-151.0,0.00013507,2]
[339807284,1727998241013,-151.0,0.00013507,2]
[339807285,1727998241023,-1476.099036,0.00013507,2]
[339807286,1727998241033,-1476.099036,0.00013507,2]
[339807287,1727998241043,-1476.099036,0.00013507,2]
[339807288,1727998241053,-1476.099036,0.00013507,2]
[339807289,1727998241063,-1476.099036,0.00013507,2]
[339807290,1727998241074,-1476.099036,0.00013507,2]
[339807291,1727998241083,-212.824329,0.00013507,2]
[339807292,1727998241094,-212.824329,0.00013507,2]
[339807293,1727998241104,-212.824329,0.00013507,2]
[339807294,1727998241114,-212.824329,0.00013507,2]
[339807295,1727998241125,-212.824329,0.00013507,2]
[339807296,1727998241135,-212.824329,0.00013507,2]
[339807297,1727998241146,-151.0,0.00013507,2]
[339807298,1727998241158,-151.0,0.00013507,2]
[339807299,1727998241168,-151.0,0.00013507,2]
[339807300,1727998241178,-264.266205,0.00013507,2]
[339807301,1727998241187,-264.266205,0.00013507,2]
[339807302,1727998241197,-264.266205,0.00013507,2]
[339807303,1727998241207,-264.266205,0.00013507,2]
[339807304,1727998241217,-264.266205,0.00013507,2]
[339807305,1727998241227,-264.266205,0.00013507,2]
[339807306,1727998241238,-151.823365,0.00013507,2]
[339807307,1727998241248,-564.32057,0.00013507,2]
[339807308,1727998241260,-564.32057,0.00013507,2]